bitfinex/quotes_ETHUSD_20220308
["timestamp","ask_amount","ask_price","bid_price","bid_amount"]
[1646701117008,5.1894,2521.7,2521.1,0.491]
[1646701117410,0.99175,2521.6,2521.1,0.491]
[1646701117808,0.99548621,2521.5,2521.1,0.491]
[1646701118010,0.99164,2521.3,2521.2,0.99690009]
[1646701118209,1.29164,2521.3,2521.2,1.48790009]
[1646701118810,1.29164,2521.3,2521.2,1.4827]
[1646701119513,1.29164,2521.3,2521.1,0.00519999]
[1646701119715,2.283708,2521.3,2521.1,0.00519999]
[1646701120116,2.283708,2521.3,2520.9,0.99203]
[1646701120117,0.93269521,2521.0,2520.9,0.99203]
[1646701120376,3.27613,2521.1,2520.9,0.99203]
[1646701121172,1.2920443,2521.0,2520.9,0.99203]
[1646701121371,2.28987611,2521.0,2520.9,0.99203]
[1646701121568,2.28987611,2521.0,2520.9,0.99723016]
[1646701121769,0.56715218,2521.0,2520.9,0.00520016]
[1646701121971,4.06715218,2521.0,2520.9,0.00520016]
[1646701122169,0.56715218,2521.0,2520.9,0.00520016]
[1646701122373,0.56715218,2521.0,2520.5,0.02080377]
[1646701122374,4.0,2520.9,2520.5,0.02080377]
[1646701122569,3.54408218,2521.0,2520.2,1.49234]
[1646701122770,0.88791581,2520.5,2520.2,1.49234]
[1646701122973,2.97676,2520.7,2520.2,1.49234]
[1646701123172,1.2923,2521.0,2520.3,0.491]
[1646701123173,0.3,2520.6,2520.3,0.491]
[1646701123373,0.99226,2520.5,2520.3,13.0824]
[1646701123573,0.99226,2520.5,2520.3,1.78616488]
[1646701123773,0.99226,2520.5,2520.4,0.1983]
[1646701123973,0.99226,2520.5,2520.4,1.97536174]
[1646701124213,0.99226,2520.5,2520.4,3.95948174]
[1646701124415,0.99226,2520.5,2520.4,2.67342]
[1646701124614,0.99226,2520.5,2520.4,1.6893]
[1646701124814,0.99226,2520.5,2520.4,0.6893]
[1646701125618,0.99226,2520.5,2520.4,4.1893]
[1646701125819,0.99226,2520.5,2520.4,1.6893]
[1646701126019,0.99226,2520.5,2520.4,0.6893]
[1646701126420,0.99226,2520.5,2520.4,0.491]
[1646701127021,0.99226,2520.5,2520.4,0.6893]
[1646701130362,0.99226,2520.5,2520.4,0.491]
[1646701130564,0.99226,2520.5,2520.4,1.24646926]
[1646701133108,0.99226,2520.5,2520.4,1.13289426]
[1646701133310,1.29226,2520.5,2520.4,1.13289426]
[1646701134311,1.29226,2520.5,2520.4,1.13072926]
[1646701137467,0.99226,2520.5,2520.4,4.63072926]
[1646701137665,0.99226,2520.5,2520.4,1.32902926]
[1646701138066,0.99226,2520.5,2520.4,4.82902926]
[1646701138467,0.99226,2520.5,2520.4,1.32902926]
[1646701138866,1.29226,2520.5,2520.4,1.32902926]
[1646701141317,0.99226,2520.5,2520.4,1.32902926]
[1646701141520,1.29226,2520.5,2520.4,1.13072926]
[1646701141916,1.3441806,2520.5,2520.4,1.13072926]
[1646701142117,0.3,2520.5,2520.4,1.13072926]
[1646701142417,0.99226,2520.5,2520.4,1.13072926]
[1646701147615,0.99226,2520.5,2520.4,4.63072926]
[1646701147917,0.75110058,2520.5,2520.4,4.63072926]
[1646701148116,0.75110058,2520.5,2520.4,2.13072926]
[1646701148317,0.75110058,2520.5,2520.4,1.13072926]
[1646701153569,1.80781558,2520.5,2520.4,1.13072926]
[1646701154216,1.80781558,2520.5,2520.4,0.75546926]
[1646701154915,1.80781558,2520.5,2520.0,0.491]
[1646701155116,0.99242,2520.2,2520.0,1.4834]
[1646701155923,0.99242,2520.2,2520.0,2.18670347]
[1646701156322,1.98671958,2520.2,2520.0,2.19147514]
[1646701156922,1.98671958,2520.2,2520.1,0.70330347]
[1646701157966,0.99429958,2520.2,2520.0,1.7006389]
[1646701158371,1.98670958,2520.2,2520.0,1.7006389]
[1646701158575,1.98670958,2520.2,2520.0,1.69570347]
[1646701158576,0.99241,2520.2,2520.0,1.69570347]
[1646701158874,1.29238,2520.3,2520.1,0.70330347]
[1646701159673,1.29238,2520.3,2520.1,1.805278]
[1646701159876,5.2426,2521.1,2520.2,0.491]
[1646701160076,0.99202,2520.5,2520.4,0.992]
[1646701160274,0.99202,2520.5,2520.4,1.20556504]
[1646701160673,0.99202,2520.5,2520.4,0.491]
[1646701161716,0.99202,2520.5,2520.4,1.20595436]
[1646701161915,2.28403,2520.7,2520.5,0.9922]
[1646701161916,1.85307878,2520.7,2520.5,0.9922]
[1646701162115,1.55307878,2520.7,2520.5,1.4832]
[1646701162317,2.54526878,2520.7,2520.5,1.4832]
[1646701162516,2.54526878,2520.7,2520.5,0.491]
[1646701162719,2.54526878,2520.7,2520.3,4.88547116]
[1646701163118,2.54526878,2520.7,2520.3,3.71642552]
[1646701163318,2.54526878,2520.7,2520.3,3.71495436]
[1646701163620,2.54526878,2520.7,2520.4,0.00147113]
[1646701164018,1.98462,2520.6,2520.4,0.00147113]
[1646701164318,0.3,2520.5,2520.4,0.00147113]
[1646701164521,1.29246,2520.5,2520.1,0.71495436]
[1646701164718,1.98494,2520.4,2519.9,2.69968436]
[1646701164920,1.98494,2520.4,2520.0,0.02016082]
[1646701165120,2.28494,2520.4,2520.0,0.73511518]
[1646701165569,1.16005107,2520.3,2520.0,0.73511518]
[1646701165768,2.45250607,2520.3,2519.9,2.69968436]
[1646701165972,5.42990607,2520.3,2520.1,0.00503964]
[1646701166173,5.72990607,2520.3,2520.1,0.00503964]
[1646701166871,0.99251,2520.2,2520.0,0.99241]
[1646701167071,2.58495,2520.3,2520.1,0.71495436]
[1646701167271,2.58495,2520.3,2520.1,0.719994]
[1646701167671,2.28495,2520.3,2520.2,0.71495436]
[1646701168072,2.28495,2520.3,2520.1,0.719994]
[1646701168473,2.28495,2520.3,2520.1,0.71983432]
[1646701168972,2.28495,2520.3,2520.2,0.71495436]
[1646701170923,2.28495,2520.3,2520.1,0.1983]
[1646701170924,2.28495,2520.3,2520.1,0.91783255]
[1646701171722,1.18443657,2520.2,2520.1,0.71495436]
[1646701171921,1.18443657,2520.2,2520.1,0.71955791]
[1646701172874,1.18443657,2520.2,2520.1,0.71495436]
[1646701175072,1.18443657,2520.2,2520.1,1.38729645]
[1646701175273,1.18443657,2520.2,2520.1,0.67234209]
[1646701176380,1.18443657,2520.2,2520.0,0.00478996]
[1646701176381,5.5,2520.1,2520.0,0.00478996]
[1646701176618,5.5,2520.1,2519.6,1.16455436]
[1646701176619,9.0,2520.1,2519.6,1.16455436]
[1646701176821,9.0,2520.1,2519.3,0.9376806]
[1646701176822,2.5,2519.9,2519.3,0.9376806]
[1646701177021,2.5,2519.9,2519.1,0.1984]
[1646701177022,0.9928,2519.8,2519.1,0.1984]
[1646701177221,0.9928,2519.8,2519.0,0.10200118]
[1646701177222,1.05643788,2519.2,2519.0,0.1]
[1646701177821,1.05643788,2519.2,2519.0,1.09282]
[1646701178023,3.04208168,2519.2,2519.1,0.1983]
[1646701178222,2.34927168,2519.2,2519.1,0.1983]
[1646701178423,1.2928338,2519.2,2519.1,0.1983]
[1646701178623,0.3,2519.2,2519.1,0.1983]
[1646701178822,1.98561,2519.3,2519.1,0.1983]
[1646701178823,2.28561,2519.3,2519.1,0.1983]
[1646701180671,2.28561,2519.3,2519.1,0.2034892]
[1646701180873,2.5,2519.1,2518.9,0.01386544]
[1646701181072,3.5,2519.0,2518.9,0.01386544]
[1646701181271,3.5,2519.0,2518.5,0.01660568]
[1646701181272,5.5,2518.9,2518.5,0.01660568]
[1646701181469,3.8,2519.0,2518.2,0.0176322]
[1646701181470,0.92744452,2518.4,2518.2,0.0176322]
[1646701181873,1.25568658,2518.2,2517.8,0.1985]
[1646701182070,0.99335,2518.1,2517.6,0.1985]
[1646701182569,2.98001,2518.1,2517.6,0.1985]
[1646701182769,2.28666,2518.1,2517.6,0.1985]
[1646701182971,2.28666,2518.1,2517.9,3.0]
[1646701183169,2.28666,2518.1,2517.6,0.1985]
[1646701184116,0.99324,2517.9,2517.7,0.00518766]
[1646701184320,0.99324,2517.9,2517.1,12.14]
[1646701184321,1.11725359,2517.4,2517.1,12.14]
[1646701184518,1.11725359,2517.4,2517.0,0.991]
[1646701184718,1.11725359,2517.4,2517.0,0.491]
[1646701184917,1.11725359,2517.4,2517.1,0.1986]
[1646701185119,1.11725359,2517.4,2517.3,3.0]
[1646701185318,2.11065839,2517.4,2517.1,0.1986]
[1646701185522,2.98022,2517.3,2517.1,0.1986]
[1646701185720,3.28022,2517.3,2517.1,0.1986]
[1646701185921,3.28022,2517.3,2517.1,12.8796]
[1646701186120,0.69294409,2517.3,2517.1,13.281]
[1646701186320,0.39294409,2517.3,2517.1,0.6896]
[1646701186523,0.39294409,2517.3,2517.1,1.68291]
[1646701186720,0.39294409,2517.3,2517.1,2.679981]
[1646701187023,0.39294409,2517.3,2517.1,5.679981]
[1646701187421,0.39294409,2517.3,2517.1,6.679981]
[1646701187623,0.39294409,2517.3,2517.1,2.679981]
[1646701187864,0.39294409,2517.3,2517.1,1.679981]
[1646701188065,0.39294409,2517.3,2517.1,2.679981]
[1646701188266,0.39294409,2517.3,2517.1,4.679981]
[1646701188472,0.39294409,2517.3,2517.1,4.491]
[1646701188869,0.39294409,2517.3,2517.1,1.4961881]
[1646701189368,0.39294409,2517.3,2517.1,3.4961881]
[1646701189572,0.39294409,2517.3,2517.1,4.4961881]
[1646701189770,0.39294409,2517.3,2517.1,4.491]
[1646701190172,2.37970409,2517.3,2517.1,4.4961881]
[1646701190572,2.67970409,2517.3,2517.1,1.4961881]
[1646701190771,2.67970409,2517.3,2516.5,11.54321728]
[1646701190972,2.67970409,2517.3,2516.8,3.0]
[1646701190973,0.99343,2517.2,2516.8,3.0]
[1646701191174,1.98691,2517.2,2516.9,0.491]
[1646701191477,3.89803547,2517.1,2517.0,3.0]
[1646701191924,5.5,2517.0,2516.6,0.1986]
[1646701192129,5.5,2517.0,2516.2,0.47399837]
[1646701192130,5.5,2516.9,2516.2,0.47399837]
[1646701192326,4.49371,2517.0,2516.0,0.491]
[1646701192327,0.99371,2517.0,2516.0,0.491]
[1646701192625,3.9754037,2516.7,2516.0,0.491]
[1646701193025,0.99386,2516.6,2516.0,1.48481]
[1646701193225,0.99386,2516.6,2516.1,12.19]
[1646701193425,0.99386,2516.6,2516.0,1.48481]
[1646701193426,0.3,2516.7,2516.3,12.19]
[1646701193625,2.9965,2517.1,2516.4,12.681]
[1646701193926,1.98683,2517.0,2516.8,1.09473316]
[1646701194127,1.98683,2517.0,2516.8,0.491]
[1646701194323,1.98683,2517.0,2516.8,3.491]
[1646701194727,1.38699764,2517.0,2516.8,16.681]
[1646701194926,1.9867598,2517.9,2516.8,16.681]
[1646701194927,1.98647,2518.1,2516.8,17.3824]
[1646701195124,3.1053,2518.2,2516.8,17.3824]
[1646701195125,4.3095,2518.2,2516.8,17.3824]
[1646701195373,4.3095,2518.2,2517.0,12.5914]
[1646701195575,4.3095,2518.2,2517.2,12.5914]
[1646701195776,4.3095,2518.2,2517.4,12.19]
[1646701195777,0.99313,2517.8,2517.4,12.19]
[1646701195976,0.99313,2517.8,2517.5,1.48412]
[1646701196174,0.99313,2517.8,2517.6,1.0]
[1646701196578,0.99313,2517.8,2517.7,0.491]
[1646701197779,0.0049164,2517.9,2517.7,0.491]
[1646701197983,0.1985,2519.5,2517.9,1.3943]
[1646701198181,3.1326,2519.2,2518.1,3.39490449]
[1646701198381,7.6384,2520.1,2518.7,1.98495]
[1646701198382,1.98501,2519.4,2518.7,1.98495]
[1646701198582,0.1985,2520.0,2519.0,12.19]
[1646701198780,10.3586,2520.1,2519.2,12.19]
[1646701198981,3.1326,2520.1,2519.4,12.19]
[1646701199217,3.1326,2520.1,2519.9,0.99224]
[1646701199419,0.1983,2520.3,2520.0,0.491]
[1646701199820,2.18278,2520.3,2520.0,0.491]
[1646701200022,0.1983,2520.3,2520.0,0.491]
[1646701200221,0.99221,2520.4,2520.0,0.491]
[1646701200422,0.99221,2520.4,2520.1,0.99223]
[1646701200623,0.99221,2520.4,2520.2,0.491]
[1646701201126,0.00327106,2520.3,2520.2,0.491]
[1646701201525,0.20157106,2520.3,2520.2,0.491]
[1646701201724,0.00327106,2520.3,2520.2,0.491]
[1646701201924,0.24064185,2519.9,2519.8,1.20969426]
[1646701202326,0.24064185,2519.9,2519.8,4.70069426]
[1646701202528,0.24064185,2519.9,2519.8,18.88297426]
[1646701202965,0.24064185,2519.9,2519.8,19.47878352]
[1646701203167,0.24064185,2519.9,2519.8,7.54675822]
[1646701203766,0.24064185,2519.9,2519.8,5.33706396]
[1646701203968,0.24064185,2519.9,2519.8,4.34478396]
[1646701204369,0.24064185,2519.9,2519.8,3.7489747]
[1646701206174,0.24064185,2519.9,2519.8,0.7489747]
[1646701208422,5.5,2519.8,2519.2,0.00199274]
[1646701208622,0.99278,2519.5,2518.9,0.00199274]
[1646701208822,0.99278,2519.5,2518.8,0.6893]
[1646701209023,5.5,2519.3,2518.6,0.3974]
[1646701209224,6.77551978,2519.2,2518.3,0.491]
[1646701209525,0.9929918,2519.0,2518.1,0.00199274]
[1646701209723,0.99323,2518.8,2518.0,0.4736]
[1646701209925,3.5,2518.7,2517.7,0.9932]
[1646701210124,0.906479,2517.9,2517.7,0.9932]
[1646701210574,1.899729,2517.9,2517.5,0.70066852]
[1646701210775,0.99337,2517.8,2517.2,0.9646]
[1646701211375,0.99337,2517.8,2517.2,0.491]
[1646701211576,0.99337,2517.8,2517.3,0.4736]
[1646701211577,1.22845559,2517.4,2517.3,0.4736]
[1646701211779,2.52181559,2517.4,2517.3,0.4736]
[1646701212179,2.52181559,2517.4,2517.0,2.47777]
[1646701212778,0.99349,2517.3,2517.0,2.47777]
[1646701212980,0.99342,2517.2,2517.0,2.47777]
[1646701213177,0.99342,2517.2,2517.0,5.47777]
[1646701213377,1.29342,2517.2,2517.0,5.47777]
[1646701213577,1.29342,2517.2,2517.1,0.3704]
[1646701213793,1.29342,2517.2,2517.1,0.8614]
[1646701214626,7.24445956,2517.2,2517.1,0.8614]
[1646701215627,7.24445956,2517.2,2517.1,0.491]
[1646701216027,7.24445956,2517.2,2516.7,0.49568204]
[1646701216230,7.43801956,2517.2,2516.7,0.49568204]
[1646701216429,1.98706,2517.1,2516.8,0.99359]
[1646701216628,1.98706,2517.1,2516.8,1.48459]
[1646701216827,1.98706,2517.1,2516.9,3.0]
[1646701217227,7.24445956,2517.2,2516.9,3.0]
[1646701217429,7.24445956,2517.2,2517.0,0.9934]
[1646701217627,6.25103956,2517.2,2517.0,0.9934]
[1646701217867,6.25103956,2517.2,2517.1,0.3704]
[1646701218070,6.25103956,2517.2,2517.1,0.8614]
[1646701218071,5.95103956,2517.2,2517.1,0.8614]
[1646701218873,5.95103956,2517.2,2517.1,3.8614]
[1646701219574,6.8706403,2517.2,2517.1,3.491]
[1646701219875,6.8706403,2517.2,2516.4,4.5208952]
[1646701219876,0.99371,2517.1,2516.4,0.00199274]
[1646701220073,0.99371,2517.1,2516.5,0.3704]
[1646701220274,0.99371,2517.1,2516.7,0.00472522]
[1646701220679,0.9938444,2517.0,2516.7,0.00472522]
[1646701220979,1.05892802,2516.8,2516.7,0.00472522]
[1646701221377,1.05892802,2516.8,2516.2,0.0528862]
[1646701221644,0.9939127,2516.7,2516.2,0.05089346]
[1646701222433,3.2820227,2516.7,2516.2,0.05089346]
[1646701222637,2.98244,2516.6,2516.3,0.00471914]
[1646701222834,0.9941369,2516.5,2516.3,0.00471914]
[1646701223033,0.27402239,2516.5,2515.5,0.585408]
[1646701223236,10.4707137,2516.6,2515.6,0.55694218]
[1646701223434,1.9883,2516.5,2515.6,0.55694218]
[1646701223637,0.99893718,2516.2,2515.7,1.00152233]
[1646701223834,1.98801,2516.2,2515.8,0.55694218]
[1646701224043,2.28801,2516.2,2515.8,0.55694218]
[1646701224635,2.28801,2516.2,2515.7,0.37789233]
[1646701224837,3.33919528,2516.2,2516.0,0.992]
[1646701225036,1.98799,2516.1,2516.0,0.992]
[1646701225239,2.28799,2516.1,2516.0,0.992]
[1646701225471,5.26350978,2516.1,2516.0,0.992]
[1646701225676,8.23902956,2516.1,2515.7,0.00749233]
[1646701225871,8.23902956,2516.1,2515.7,1.00311713]
[1646701226276,9.23315396,2516.1,2515.8,0.00517691]
[1646701226474,4.97121,2516.0,2515.8,0.00517691]
[1646701227072,5.27121,2516.0,2515.8,0.00517691]
[1646701227273,0.99396,2515.9,2515.7,0.01111713]
[1646701227773,0.99396,2515.9,2515.8,0.992]
[1646701228178,5.95103956,2516.1,2515.8,17.05977503]
[1646701228376,5.95103956,2516.1,2515.8,0.6896]
[1646701229424,5.95103956,2516.1,2515.8,0.491]
[1646701229425,6.94481956,2516.1,2515.8,0.491]
[1646701229618,6.94481956,2516.1,2515.7,0.01111713]
[1646701229619,5.0,2516.0,2515.7,0.01111713]
[1646701229819,7.24481956,2516.1,2515.7,0.01111713]
[1646701230023,0.99426,2516.0,2515.7,0.01111713]
[1646701230222,0.99426,2516.0,2515.7,0.50211713]
[1646701230223,1.29426,2516.0,2515.7,0.50211713]
[1646701230624,2.98245,2515.9,2515.7,1.49611713]
[1646701230827,5.95103956,2515.8,2515.7,1.49611713]
[1646701231025,5.95103956,2515.8,2515.7,1.5010537]
[1646701232227,5.95103956,2515.8,2515.7,1.49611713]
[1646701235070,5.95103956,2515.8,2515.7,1.79611713]
[1646701235270,2.14798245,2515.8,2515.7,14.35731713]
[1646701235471,2.14798245,2515.8,2515.7,5.16731713]
[1646701235672,2.14798245,2515.8,2515.7,6.16731713]
[1646701235872,1.98774,2515.9,2515.7,6.16731713]
[1646701236273,2.14798245,2515.8,2515.7,5.49611713]
[1646701236473,2.14798245,2515.8,2515.7,3.50211713]
[1646701236720,2.14798245,2515.8,2515.7,0.50211713]
[1646701239125,2.14798245,2515.8,2515.7,4.00211713]
[1646701239430,2.14798245,2515.8,2515.7,17.86251713]
[1646701239623,2.14798245,2515.8,2515.7,5.37251713]
[1646701240023,2.14798245,2515.8,2515.7,20.56251713]
[1646701240474,2.14798245,2515.8,2515.7,8.00211713]
[1646701240875,1.10202637,2515.8,2515.7,20.19211713]
[1646701241073,0.00466724,2516.2,2515.9,12.19]
[1646701241276,0.00466724,2516.2,2516.1,18.322]
[1646701241475,1.2359,2517.2,2516.3,12.19]
[1646701241674,7.8202,2517.6,2516.4,0.491]
[1646701241874,7.8202,2517.6,2516.8,0.92225735]
[1646701241875,0.99336,2517.2,2516.8,0.92225735]
[1646701242077,0.99336,2517.2,2516.5,3.5]
[1646701242078,0.99341,2517.0,2516.9,0.491]
[1646701242277,0.99341,2517.0,2516.9,1.48446]
[1646701242478,0.99341,2517.0,2516.9,0.491]
[1646701243077,1.25478033,2517.1,2516.9,0.491]
[1646701243277,1.55478033,2517.1,2516.9,0.491]
[1646701243679,0.99341,2517.0,2516.9,3.491]
[1646701244119,0.99341,2517.0,2516.9,4.44410025]
[1646701244317,0.99341,2517.0,2516.9,7.94410025]
[1646701244518,0.99341,2517.0,2516.9,3.491]
[1646701247125,0.99341,2517.0,2516.9,6.991]
[1646701248069,0.99341,2517.0,2516.9,19.181]
[1646701248270,0.99341,2517.0,2516.9,6.991]
[1646701248470,0.99341,2517.0,2516.9,3.491]
[1646701249273,0.99341,2517.0,2516.9,3.8614]
[1646701249772,0.99341,2517.0,2516.9,8.3614]
[1646701250077,0.30494116,2517.1,2516.9,21.98691244]
[1646701250078,0.3,2517.1,2516.9,21.98691244]
[1646701250273,0.3,2517.2,2517.0,15.69]
[1646701250479,0.00516868,2517.1,2517.0,14.17649]
[1646701250678,0.00516868,2517.1,2517.0,19.11096146]
[1646701251477,4.1631,2517.6,2517.0,19.11096146]
[1646701251721,0.00516862,2517.2,2517.1,17.12670146]
[1646701251919,11.8879,2518.1,2517.3,12.19]
[1646701252118,4.1872,2518.1,2517.4,16.181]
[1646701252320,4.1872,2518.1,2518.0,3.0]
[1646701252520,7.9483,2518.7,2518.0,3.491]
[1646701252724,1.15210204,2518.6,2518.0,0.491]
[1646701253320,4.87864762,2518.5,2518.3,3.0]
[1646701253524,1.15210204,2518.4,2518.3,3.0]
[1646701253722,0.99296,2518.6,2518.3,6.991]
[1646701253921,0.99289,2518.6,2518.3,3.491]
[1646701254120,0.99289,2518.6,2518.3,6.991]
[1646701254321,0.99289,2518.6,2518.3,19.481]
[1646701254524,0.99289,2518.6,2518.3,13.97404]
[1646701254724,0.99289,2518.6,2518.3,1.48404]
[1646701254925,1.98575,2518.6,2518.3,1.48404]
[1646701255125,1.29286,2518.6,2518.3,0.491]
[1646701255777,1.98607,2518.5,2518.3,0.491]
[1646701256077,1.98607,2518.5,2518.4,0.99301]
[1646701256278,2.28607,2518.5,2518.4,1.48401]
[1646701256679,0.3,2518.5,2518.4,1.48401]
[1646701256880,1.98588,2518.6,2518.4,1.48401]
[1646701257080,1.98588,2518.6,2518.4,1.85441]
[1646701257482,1.98588,2518.6,2518.4,4.85441]
[1646701258080,2.28588,2518.6,2518.4,5.85441]
[1646701258781,2.28588,2518.6,2518.4,5.48401]
[1646701258980,2.28588,2518.6,2518.5,0.3704]
[1646701259220,2.28588,2518.6,2518.5,0.8614]
[1646701260021,2.28588,2518.6,2518.5,4.3614]
[1646701260218,2.28588,2518.6,2518.5,5.3614]
[1646701260219,0.99302,2518.6,2518.5,5.3614]
[1646701260431,0.99302,2518.6,2518.5,17.5514]
[1646701260622,0.45353828,2518.6,2518.5,17.8514]
[1646701261022,1.98578,2518.7,2518.5,17.8514]
[1646701261223,1.94069497,2518.7,2518.6,15.69]
[1646701261428,3.97213,2519.3,2518.6,17.3795]
[1646701261624,0.24064185,2519.9,2518.8,18.7234]
[1646701261826,0.24064185,2519.9,2519.1,3.0]
[1646701262024,0.99229,2519.7,2519.3,12.19]
[1646701262224,0.99229,2519.7,2519.5,12.19]
[1646701262425,0.99229,2519.7,2519.6,15.69]
[1646701262625,0.99229,2519.7,2519.6,3.991]
[1646701262879,0.99229,2519.7,2519.6,0.491]
[1646701263073,0.99229,2519.7,2519.5,1.75132274]
[1646701263269,0.99229,2519.7,2519.0,3.70776832]
[1646701263469,1.29229,2519.7,2519.4,0.3704]
[1646701263671,1.29229,2519.7,2519.5,3.491]
[1646701263970,2.28484,2519.7,2519.5,3.491]
[1646701264671,2.28484,2519.7,2519.5,5.47565]
[1646701264971,2.28484,2519.7,2519.4,0.3704]
[1646701265171,1.29229,2519.7,2519.6,0.6894]
[1646701265373,1.29229,2519.7,2519.5,0.491]
[1646701265579,1.29229,2519.7,2519.0,0.00946832]
[1646701265580,2.97856,2519.5,2519.0,0.49849233]
[1646701265776,2.97856,2519.5,2519.0,0.00749233]
[1646701265976,2.97856,2519.5,2518.5,0.3704]
[1646701266177,2.97856,2519.5,2518.4,0.04340113]
[1646701266178,6.30940218,2519.4,2518.4,0.04340113]
[1646701266476,5.5,2519.2,2518.4,0.04340113]
[1646701266728,5.5,2519.2,2517.8,0.05838579]
[1646701266729,3.0,2518.9,2517.8,0.05838579]
[1646701266931,3.0,2518.9,2517.9,0.1985]
[1646701266932,1.98662,2518.7,2517.9,0.1985]
[1646701267130,0.9933094,2518.5,2517.9,0.1985]
[1646701267330,0.99338,2518.4,2517.9,0.1985]
[1646701267530,4.46188,2518.4,2517.4,0.04340113]
[1646701267735,5.5,2518.2,2517.1,1.98691]
[1646701267933,0.99353,2518.0,2517.1,1.98691]
[1646701268134,1.29353,2518.0,2517.1,1.98691]
[1646701268532,2.98048,2517.8,2517.1,1.98691]
[1646701268733,0.99833912,2517.7,2517.1,1.98691]
[1646701269333,0.99833912,2517.7,2517.0,2.48554233]
[1646701269334,1.99182912,2517.7,2517.0,2.48554233]
[1646701269533,1.99182912,2517.7,2517.0,0.49849233]
[1646701269734,1.99182912,2517.7,2517.0,0.01498466]
[1646701269735,0.99368,2517.6,2517.0,0.01498466]
[1646701269934,0.99368,2517.6,2516.7,0.00196426]
[1646701269935,2.28741,2517.5,2516.7,0.00196426]
[1646701270140,2.28741,2517.5,2516.4,0.50045659]
[1646701270380,2.9117,2517.4,2516.4,0.49849233]
[1646701270570,2.9117,2517.4,2516.5,1.98742]
[1646701270571,3.90541,2517.4,2516.5,1.98742]
[1646701270773,4.90541,2517.4,2516.5,1.99491233]
[1646701270971,5.20541,2517.4,2516.5,1.99491233]
[1646701271173,1.02532944,2517.2,2516.5,1.99491233]
[1646701271476,3.01277944,2517.2,2516.5,1.99491233]
[1646701271671,0.99373,2517.1,2516.5,1.99491233]
[1646701271875,0.99373,2517.1,2516.5,2.00240466]
[1646701272073,1.98744,2517.1,2516.5,2.49340466]
[1646701272271,1.29371,2517.1,2516.5,2.49340466]
[1646701272876,1.29371,2517.1,2516.5,2.53680579]
[1646701273072,0.88925229,2516.6,2516.5,2.53680579]
[1646701273275,0.88925229,2516.6,2516.5,3.03174363]
[1646701273972,0.88925229,2516.6,2516.5,3.03923596]
[1646701274826,0.88925229,2516.6,2516.5,2.54429812]
[1646701275025,0.88925229,2516.6,2516.5,3.08281745]
[1646701275729,1.29366,2516.7,2516.5,3.08281745]
[1646701275932,1.29366,2516.7,2516.6,0.4951182]
[1646701276129,1.29366,2516.7,2516.6,0.9861182]
[1646701276530,1.29366,2516.7,2516.6,0.491]
[1646701276732,2.37444243,2516.7,2516.6,0.491]
[1646701277332,1.38078243,2516.7,2516.6,0.491]
[1646701277532,1.08078243,2516.7,2516.6,0.491]
[1646701277731,1.08078243,2516.7,2516.6,1.480329]
[1646701282020,1.08078243,2516.7,2516.6,0.99366]
[1646701282320,5.5,2516.6,2516.5,0.10927925]
[1646701282719,1.38078243,2516.7,2516.5,0.10927925]
[1646701283119,0.21890063,2516.7,2516.5,0.10927925]
[1646701283921,0.21890063,2516.7,2516.5,0.06587812]
[1646701284422,2.2873,2516.8,2516.5,1.05966812]
[1646701284423,0.3,2516.8,2516.5,1.05966812]
[1646701284624,0.3,2516.8,2516.6,3.5]
[1646701284821,3.93091887,2517.2,2516.6,0.491]
[1646701285121,3.93091887,2517.2,2516.7,0.48121333]
[1646701285122,4.23091887,2517.2,2516.7,0.48121333]
[1646701285577,4.23091887,2517.2,2516.7,1.47478333]
[1646701285578,1.13924074,2516.9,2516.7,1.47478333]
[1646701285778,2.13285074,2516.9,2516.7,0.99357]
[1646701285979,3.12646074,2516.9,2516.7,0.99357]
[1646701286280,3.12646074,2516.9,2516.6,2.47814]
[1646701286281,3.42646074,2516.9,2516.6,2.47814]
[1646701286678,3.42646074,2516.9,2516.6,1.98714]
[1646701287080,1.9875,2516.8,2516.6,1.98714]
[1646701287279,1.9875,2516.8,2516.5,0.06587812]
[1646701287280,2.98133,2516.8,2516.5,0.06587812]
[1646701287684,3.28133,2516.8,2516.5,0.06587812]
[1646701288180,3.28133,2516.8,2516.5,1.05967812]
[1646701288381,0.3,2516.7,2516.5,0.06587812]
[1646701289324,0.3,2516.7,2515.9,0.5027203]
[1646701289325,1.11461548,2516.6,2515.9,0.5027203]
[1646701289529,1.11461548,2516.6,2516.1,0.00462227]
[1646701289530,3.0,2516.4,2516.1,0.00462227]
[1646701289727,5.5,2516.1,2515.5,0.0072496]
[1646701290027,1.12379284,2516.0,2515.5,0.0072496]
[1646701290228,3.3,2515.9,2515.5,0.0144992]
[1646701290431,2.86686591,2515.8,2515.5,9.92e-05]
[1646701290630,6.4946171,2515.6,2514.6,0.013674]
[1646701290830,0.99465,2515.3,2514.6,0.013674]
[1646701291328,3.0005,2515.2,2514.6,0.013674]
[1646701291534,1.02996027,2515.0,2514.6,0.013674]
[1646701291730,0.99457,2514.9,2514.4,12.2498608]
[1646701291931,0.99457,2514.9,2514.7,3.0]
[1646701292128,1.29457,2514.9,2514.7,4.48529]
[1646701292529,1.29457,2514.9,2514.8,0.47277533]
[1646701292729,1.29457,2514.9,2514.8,0.491]
[1646701293977,1.29457,2514.9,2514.8,0.96287943]
[1646701294574,1.29457,2514.9,2514.8,0.491]
[1646701295374,1.29457,2514.9,2514.8,0.96266678]
[1646701296181,0.3,2514.9,2514.8,17.05406678]
[1646701296381,0.3,2514.9,2514.8,18.05406678]
[1646701296622,0.9941,2515.2,2514.8,18.05406678]
[1646701296827,0.9941,2515.2,2514.9,0.47166678]
[1646701297023,0.9941,2515.2,2515.0,0.491]
[1646701297225,0.9953,2515.2,2514.9,0.491]
[1646701297427,2.98306,2515.1,2514.9,0.491]
[1646701298028,2.98306,2515.1,2514.9,3.491]